[Event "Titled Tuesday Blitz April 26 Early 2022"]
[White "Pinheiro, Iung Alicio de O."]
[Black "Legenia, Artem"]
[WhiteFideId "2104350"]
[BlackFideId "14136945"]
[WhiteElo "2482"]
[BlackElo "1936"]
[Result "0-1"]
[Round "02"]
[TimeControl "180+1"]
[Date "2022.04.26"]
[WhiteClock "0:00:02"]
[BlackClock "0:00:23"]

1. c4 {[%clk 0:02:59]}  f5 {[%clk 0:02:57]} 2. g3 {[%clk 0:02:59]}  e6 {[%clk 0:02:57]} 3. Bg2 {[%clk 0:03:00]}  Nf6 {[%clk 0:02:57]} 4. d3 {[%clk 0:03:00]}  Bb4+ {[%clk 0:02:57]} 5. Bd2 {[%clk 0:02:53]}  Bxd2+ {[%clk 0:02:57]} 6. Qxd2 {[%clk 0:02:52]}  O-O {[%clk 0:02:58]} 7. Nc3 {[%clk 0:02:52]}  Nc6 {[%clk 0:02:49]} 8. e4 {[%clk 0:02:50]}  fxe4 {[%clk 0:02:47]} 9. dxe4 {[%clk 0:02:50]}  d6 {[%clk 0:02:46]} 10. Nge2 {[%clk 0:02:47]}  e5 {[%clk 0:02:46]} 11. O-O {[%clk 0:02:46]}  Ne7 {[%clk 0:02:43]} 12. Rad1 {[%clk 0:02:39]}  Be6 {[%clk 0:02:39]} 13. b3 {[%clk 0:02:37]}  a6 {[%clk 0:02:20]} 14. Qe3 {[%clk 0:02:27]}  Qe8 {[%clk 0:02:19]} 15. h3 {[%clk 0:02:23]}  Qh5 {[%clk 0:02:16]} 16. g4 {[%clk 0:02:07]}  Qh4 {[%clk 0:02:13]} 17. f4 {[%clk 0:02:02]}  exf4 {[%clk 0:02:07]} 18. Rxf4 {[%clk 0:01:13]}  Ng6 {[%clk 0:02:07]} 19. Rf2 {[%clk 0:01:07]}  Ne5 {[%clk 0:02:07]} 20. Qg3 {[%clk 0:01:06]}  Qxg3 {[%clk 0:01:55]} 21. Nxg3 {[%clk 0:01:06]}  Nfd7 {[%clk 0:01:51]} 22. Nf5 {[%clk 0:01:03]}  g6 {[%clk 0:01:49]} 23. Ne7+ {[%clk 0:01:01]}  Kg7 {[%clk 0:01:49]} 24. Ned5 {[%clk 0:01:01]}  Rxf2 {[%clk 0:01:48]} 25. Kxf2 {[%clk 0:01:02]}  Rc8 {[%clk 0:01:43]} 26. Ke3 {[%clk 0:00:55]}  b6 {[%clk 0:01:39]} 27. g5 {[%clk 0:00:53]}  Bxd5 {[%clk 0:01:30]} 28. Nxd5 {[%clk 0:00:49]}  Nf8 {[%clk 0:01:31]} 29. Bf3 {[%clk 0:00:44]}  Ne6 {[%clk 0:01:30]} 30. h4 {[%clk 0:00:44]}  Rf8 {[%clk 0:01:25]} 31. Be2 {[%clk 0:00:44]}  a5 {[%clk 0:01:24]} 32. a3 {[%clk 0:00:40]}  h6 {[%clk 0:01:22]} 33. gxh6+ {[%clk 0:00:38]}  Kxh6 {[%clk 0:01:22]} 34. Rg1 {[%clk 0:00:38]}  Rf7 {[%clk 0:01:17]} 35. b4 {[%clk 0:00:35]}  axb4 {[%clk 0:01:15]} 36. axb4 {[%clk 0:00:36]}  c6 {[%clk 0:01:05]} 37. Nc3 {[%clk 0:00:36]}  Ra7 {[%clk 0:01:04]} 38. Rd1 {[%clk 0:00:34]}  Ra3 {[%clk 0:01:03]} 39. Kd2 {[%clk 0:00:34]}  Nd4 {[%clk 0:00:52]} 40. Bd3 {[%clk 0:00:29]}  Nef3+ {[%clk 0:00:45]} 41. Kc1 {[%clk 0:00:14]}  Rxc3+ {[%clk 0:00:45]} 42. Kb2 {[%clk 0:00:15]}  Rb3+ {[%clk 0:00:38]} 43. Ka2 {[%clk 0:00:15]}  Rxb4 {[%clk 0:00:38]} 44. Rf1 {[%clk 0:00:08]}  Ra4+ {[%clk 0:00:36]} 45. Kb2 {[%clk 0:00:08]}  Rb4+ {[%clk 0:00:36]} 46. Ka2 {[%clk 0:00:07]}  Kg7 {[%clk 0:00:34]} 47. Rf2 {[%clk 0:00:06]}  Kf6 {[%clk 0:00:34]} 48. Rg2 {[%clk 0:00:06]}  Ne5 {[%clk 0:00:32]} 49. Rf2+ {[%clk 0:00:06]}  Ke6 {[%clk 0:00:32]} 50. Bf1 {[%clk 0:00:07]}  Nxc4 {[%clk 0:00:30]} 51. Bxc4+ {[%clk 0:00:06]}  Rxc4 {[%clk 0:00:30]} 52. Rf8 {[%clk 0:00:07]}  Nb5 {[%clk 0:00:27]} 53. Rg8 {[%clk 0:00:05]}  Kf7 {[%clk 0:00:26]} 54. Rc8 {[%clk 0:00:04]}  c5 {[%clk 0:00:23]} 55. Rb8 {[%clk 0:00:03]}  Rb4 {[%clk 0:00:23]} 56. Ka1 {[%clk 0:00:02]}  Nc3 {[%clk 0:00:23]} 0-1


[Site "https://www.chess.com"]

[Event "Titled Tuesday Blitz April 26 Early 2022"]
[White "Pourkashiyan, Atousa"]
[Black "Omariev, Maksim"]
[WhiteFideId "12502014"]
[BlackFideId "4193423"]
[WhiteElo "2247"]
[BlackElo "2502"]
[Result "1-0"]
[Round "02"]
[TimeControl "180+1"]
[Date "2022.04.26"]
[WhiteClock "0:00:21"]
[BlackClock "0:02:11"]

1. e4 {[%clk 0:00:51]}  h5 {[%clk 0:03:00]} 2. d4 {[%clk 0:00:48]}  h4 {[%clk 0:03:01]} 3. h3 {[%clk 0:00:48]}  c6 {[%clk 0:03:02]} 4. Nf3 {[%clk 0:00:48]}  d5 {[%clk 0:03:02]} 5. Nc3 {[%clk 0:00:49]}  dxe4 {[%clk 0:03:03]} 6. Nxe4 {[%clk 0:00:49]}  Bf5 {[%clk 0:03:03]} 7. Bd3 {[%clk 0:00:48]}  e6 {[%clk 0:03:04]} 8. Qe2 {[%clk 0:00:48]}  Be7 {[%clk 0:03:05]} 9. O-O {[%clk 0:00:47]}  Nd7 {[%clk 0:03:05]} 10. Bf4 {[%clk 0:00:47]}  Qa5 {[%clk 0:03:03]} 11. Nd6+ {[%clk 0:00:47]}  Bxd6 {[%clk 0:03:04]} 12. Bxd6 {[%clk 0:00:48]}  Bxd3 {[%clk 0:03:04]} 13. Qxd3 {[%clk 0:00:47]}  Qd5 {[%clk 0:03:05]} 14. Bh2 {[%clk 0:00:46]}  Ngf6 {[%clk 0:03:05]} 15. c4 {[%clk 0:00:46]}  Qe4 {[%clk 0:03:06]} 16. Rad1 {[%clk 0:00:46]}  Qxd3 {[%clk 0:03:06]} 17. Rxd3 {[%clk 0:00:47]}  Rg8 {[%clk 0:03:06]} 18. Ne5 {[%clk 0:00:47]}  g5 {[%clk 0:03:06]} 19. Nxd7 {[%clk 0:00:45]}  Kxd7 {[%clk 0:03:07]} 20. Be5 {[%clk 0:00:45]}  Ne8 {[%clk 0:03:03]} 21. d5 {[%clk 0:00:42]}  f6 {[%clk 0:03:01]} 22. dxe6+ {[%clk 0:00:40]}  Kxe6 {[%clk 0:03:02]} 23. Bc3 {[%clk 0:00:40]}  Ng7 {[%clk 0:02:54]} 24. Re1+ {[%clk 0:00:40]}  Kf5 {[%clk 0:02:54]} 25. Rf3+ {[%clk 0:00:39]}  Kg6 {[%clk 0:02:53]} 26. Rxf6+ {[%clk 0:00:40]}  Kh5 {[%clk 0:02:52]} 27. Re7 {[%clk 0:00:33]}  Rad8 {[%clk 0:02:46]} 28. Rff7 {[%clk 0:00:33]}  Ne8 {[%clk 0:02:42]} 29. Rxb7 {[%clk 0:00:28]}  Nd6 {[%clk 0:02:42]} 30. Rh7+ {[%clk 0:00:28]}  Kg6 {[%clk 0:02:42]} 31. Rxa7 {[%clk 0:00:28]}  Nxc4 {[%clk 0:02:42]} 32. a4 {[%clk 0:00:27]}  Rb8 {[%clk 0:02:31]} 33. Rhc7 {[%clk 0:00:26]}  Nxb2 {[%clk 0:02:30]} 34. Rxc6+ {[%clk 0:00:26]}  Kf5 {[%clk 0:02:31]} 35. Rc5+ {[%clk 0:00:24]}  Ke4 {[%clk 0:02:31]} 36. Bxb2 {[%clk 0:00:20]}  Rxb2 {[%clk 0:02:31]} 37. Re7+ {[%clk 0:00:19]}  Kd4 {[%clk 0:02:31]} 38. Rcc7 {[%clk 0:00:18]}  Rf8 {[%clk 0:02:31]} 39. f3 {[%clk 0:00:17]}  Ra8 {[%clk 0:02:29]} 40. Re4+ {[%clk 0:00:16]}  Kd3 {[%clk 0:02:29]} 41. Rg7 {[%clk 0:00:16]}  Ra5 {[%clk 0:02:28]} 42. Rd7+ {[%clk 0:00:17]}  Kc3 {[%clk 0:02:27]} 43. Kh2 {[%clk 0:00:17]}  Ra2 {[%clk 0:02:22]} 44. Rg7 {[%clk 0:00:17]}  R2xa4 {[%clk 0:02:11]} 45. Rxa4 {[%clk 0:00:18]}  Rxa4 {[%clk 0:02:11]} 46. Rxg5 {[%clk 0:00:19]}  Kd3 {[%clk 0:02:11]} 47. Rg4 {[%clk 0:00:19]}  Ra5 {[%clk 0:02:11]} 48. Rxh4 {[%clk 0:00:20]}  Ke3 {[%clk 0:02:12]} 49. Re4+ {[%clk 0:00:21]}  Kd3 {[%clk 0:02:11]} 50. h4 {[%clk 0:00:21]} 1-0


[Site "https://www.chess.com"]

[Event "Titled Tuesday Blitz April 26 Early 2022"]
[White "Prieto Aranguren, Alain"]
[Black "Buscar, Michael"]
[WhiteFideId "2268906"]
[BlackFideId "2603616"]
[WhiteElo "2235"]
[BlackElo "2010"]
[Result "1-0"]
[Round "02"]
[TimeControl "180+1"]
[Date "2022.04.26"]
[WhiteClock "0:00:03"]
[BlackClock "0:00:01"]

1. d4 {[%clk 0:02:58]}  d5 {[%clk 0:02:58]} 2. Bg5 {[%clk 0:02:57]}  Nf6 {[%clk 0:02:57]} 3. Nd2 {[%clk 0:02:55]}  e6 {[%clk 0:02:57]} 4. e3 {[%clk 0:02:55]}  Be7 {[%clk 0:02:54]} 5. Bd3 {[%clk 0:02:55]}  Nbd7 {[%clk 0:02:48]} 6. Ngf3 {[%clk 0:02:53]}  c5 {[%clk 0:02:45]} 7. c3 {[%clk 0:02:53]}  b6 {[%clk 0:02:44]} 8. O-O {[%clk 0:02:49]}  a5 {[%clk 0:02:44]} 9. Re1 {[%clk 0:02:47]}  Ba6 {[%clk 0:02:44]} 10. Bc2 {[%clk 0:02:47]}  b5 {[%clk 0:02:39]} 11. e4 {[%clk 0:02:47]}  dxe4 {[%clk 0:02:37]} 12. Nxe4 {[%clk 0:02:46]}  cxd4 {[%clk 0:02:37]} 13. Nxd4 {[%clk 0:02:43]}  Qc7 {[%clk 0:02:33]} 14. a4 {[%clk 0:02:35]}  b4 {[%clk 0:02:15]} 15. cxb4 {[%clk 0:02:34]}  axb4 {[%clk 0:02:14]} 16. Rc1 {[%clk 0:02:23]}  Qb6 {[%clk 0:01:44]} 17. Be3 {[%clk 0:02:19]}  Qb7 {[%clk 0:01:38]} 18. Bf4 {[%clk 0:01:59]}  O-O {[%clk 0:01:34]} 19. Nd6 {[%clk 0:01:57]}  Qd5 {[%clk 0:01:25]} 20. N4b5 {[%clk 0:01:47]}  Rac8 {[%clk 0:01:10]} 21. Nxc8 {[%clk 0:01:43]}  Rxc8 {[%clk 0:01:08]} 22. Qxd5 {[%clk 0:01:29]}  Nxd5 {[%clk 0:01:07]} 23. Bg3 {[%clk 0:01:10]}  Nc5 {[%clk 0:00:55]} 24. Rcd1 {[%clk 0:01:01]}  b3 {[%clk 0:00:45]} 25. Bb1 {[%clk 0:00:58]}  Nxa4 {[%clk 0:00:42]} 26. Nd6 {[%clk 0:00:58]}  Rc6 {[%clk 0:00:33]} 27. Rxd5 {[%clk 0:00:54]}  exd5 {[%clk 0:00:28]} 28. Bf4 {[%clk 0:00:41]}  g5 {[%clk 0:00:16]} 29. Nf5 {[%clk 0:00:35]}  Bf8 {[%clk 0:00:12]} 30. Be5 {[%clk 0:00:33]}  Re6 {[%clk 0:00:09]} 31. Nd4 {[%clk 0:00:22]}  Re8 {[%clk 0:00:05]} 32. Bf5 {[%clk 0:00:09]}  f6 {[%clk 0:00:05]} 33. Be6+ {[%clk 0:00:09]}  Kg7 {[%clk 0:00:05]} 34. Bg3 {[%clk 0:00:08]}  Nxb2 {[%clk 0:00:05]} 35. h4 {[%clk 0:00:06]}  Bd3 {[%clk 0:00:03]} 36. hxg5 {[%clk 0:00:05]}  fxg5 {[%clk 0:00:04]} 37. Be5+ {[%clk 0:00:05]}  Kh6 {[%clk 0:00:04]} 38. Re3 {[%clk 0:00:05]}  g4 {[%clk 0:00:02]} 39. Bxg4 {[%clk 0:00:03]}  Nc4 {[%clk 0:00:01]} 40. Rh3+ {[%clk 0:00:03]}  Kg5 {[%clk 0:00:01]} 41. Bf3 {[%clk 0:00:03]} 1-0


[Site "https://www.chess.com"]

[Event "Titled Tuesday Blitz April 26 Early 2022"]
[White "Rengifo Blancas, Renzo Jhonathan"]
[Black "Abarca Gonzalez, Nicolas"]
[WhiteFideId "3807185"]
[BlackFideId "3409422"]
[WhiteElo "2058"]
[BlackElo "2504"]
[Result "0-1"]
[Round "02"]
[TimeControl "180+1"]
[Date "2022.04.26"]
[WhiteClock "0:00:03"]
[BlackClock "0:01:15"]

1. e4 {[%clk 0:03:00]}  c5 {[%clk 0:02:59]} 2. c3 {[%clk 0:03:00]}  Nf6 {[%clk 0:02:57]} 3. e5 {[%clk 0:02:59]}  Nd5 {[%clk 0:02:54]} 4. d4 {[%clk 0:03:00]}  cxd4 {[%clk 0:02:51]} 5. Nf3 {[%clk 0:02:59]}  Nc6 {[%clk 0:02:49]} 6. cxd4 {[%clk 0:02:57]}  g6 {[%clk 0:02:48]} 7. Bc4 {[%clk 0:02:24]}  Nb6 {[%clk 0:02:47]} 8. Bb3 {[%clk 0:02:24]}  Bg7 {[%clk 0:02:46]} 9. O-O {[%clk 0:02:21]}  O-O {[%clk 0:02:45]} 10. Nc3 {[%clk 0:02:21]}  d6 {[%clk 0:02:45]} 11. Bf4 {[%clk 0:02:17]}  Bg4 {[%clk 0:02:43]} 12. exd6 {[%clk 0:02:14]}  Nxd4 {[%clk 0:02:39]} 13. h3 {[%clk 0:01:51]}  Bxf3 {[%clk 0:02:30]} 14. gxf3 {[%clk 0:01:49]}  exd6 {[%clk 0:02:30]} 15. Be3 {[%clk 0:01:18]}  Nf5 {[%clk 0:02:25]} 16. Nd5 {[%clk 0:01:14]}  Nxd5 {[%clk 0:02:22]} 17. Qxd5 {[%clk 0:01:09]}  Qh4 {[%clk 0:02:23]} 18. Kg2 {[%clk 0:01:06]}  Rae8 {[%clk 0:02:16]} 19. Rae1 {[%clk 0:01:03]}  Re5 {[%clk 0:02:02]} 20. Qc4 {[%clk 0:00:59]}  Nxe3+ {[%clk 0:02:01]} 21. Rxe3 {[%clk 0:00:53]}  Rg5+ {[%clk 0:02:01]} 22. Kh2 {[%clk 0:00:52]}  Be5+ {[%clk 0:01:58]} 23. Rxe5 {[%clk 0:00:48]}  Qxc4 {[%clk 0:01:58]} 24. Bxc4 {[%clk 0:00:47]}  Rxe5 {[%clk 0:01:58]} 25. Rd1 {[%clk 0:00:46]}  Rd8 {[%clk 0:01:52]} 26. Bd5 {[%clk 0:00:46]}  Kf8 {[%clk 0:01:50]} 27. Rd2 {[%clk 0:00:46]}  b6 {[%clk 0:01:48]} 28. Kg3 {[%clk 0:00:43]}  Ke7 {[%clk 0:01:45]} 29. f4 {[%clk 0:00:43]}  Re1 {[%clk 0:01:45]} 30. Rc2 {[%clk 0:00:43]}  Rd1 {[%clk 0:01:42]} 31. Bb3 {[%clk 0:00:29]}  Rd3+ {[%clk 0:01:38]} 32. f3 {[%clk 0:00:28]}  d5 {[%clk 0:01:39]} 33. Ba4 {[%clk 0:00:19]}  d4 {[%clk 0:01:36]} 34. Rc7+ {[%clk 0:00:19]}  Kd6 {[%clk 0:01:33]} 35. Rxa7 {[%clk 0:00:19]}  Rd2 {[%clk 0:01:24]} 36. Bb3 {[%clk 0:00:05]}  Rxb2 {[%clk 0:01:22]} 37. Rxf7 {[%clk 0:00:06]}  d3 {[%clk 0:01:15]} 38. Rf6+ {[%clk 0:00:03]}  Kc5 {[%clk 0:01:15]} 0-1


[Site "https://www.chess.com"]

[Event "Titled Tuesday Blitz April 26 Early 2022"]
[White "Richter, Nils"]
[Black "Unver, Cumali"]
[WhiteFideId "12990809"]
[BlackFideId "6304940"]
[WhiteElo "2243"]
[BlackElo "2013"]
[Result "1-0"]
[Round "02"]
[TimeControl "180+1"]
[Date "2022.04.26"]
[WhiteClock "0:01:26"]
[BlackClock "0:00:05"]

1. d4 {[%clk 0:03:00]}  Nf6 {[%clk 0:02:59]} 2. c4 {[%clk 0:03:01]}  e6 {[%clk 0:02:59]} 3. Nf3 {[%clk 0:03:00]}  d5 {[%clk 0:02:59]} 4. e3 {[%clk 0:03:00]}  Be7 {[%clk 0:02:59]} 5. b3 {[%clk 0:02:59]}  O-O {[%clk 0:02:59]} 6. Bd3 {[%clk 0:03:00]}  Nbd7 {[%clk 0:02:58]} 7. O-O {[%clk 0:02:59]}  b6 {[%clk 0:02:58]} 8. cxd5 {[%clk 0:02:59]}  exd5 {[%clk 0:02:56]} 9. Ba3 {[%clk 0:02:59]}  Bxa3 {[%clk 0:02:54]} 10. Nxa3 {[%clk 0:03:00]}  c6 {[%clk 0:02:55]} 11. Nb1 {[%clk 0:02:57]}  Bb7 {[%clk 0:02:55]} 12. Nbd2 {[%clk 0:02:57]}  Re8 {[%clk 0:02:54]} 13. Qc2 {[%clk 0:02:56]}  h6 {[%clk 0:02:53]} 14. b4 {[%clk 0:02:53]}  Rc8 {[%clk 0:02:52]} 15. a4 {[%clk 0:02:52]}  Qe7 {[%clk 0:02:51]} 16. Rfb1 {[%clk 0:02:45]}  Qd6 {[%clk 0:02:38]} 17. a5 {[%clk 0:02:39]}  b5 {[%clk 0:02:26]} 18. a6 {[%clk 0:02:39]}  Ba8 {[%clk 0:02:25]} 19. Nb3 {[%clk 0:02:39]}  Ne4 {[%clk 0:02:18]} 20. Nc5 {[%clk 0:02:36]}  Nexc5 {[%clk 0:02:16]} 21. dxc5 {[%clk 0:02:36]}  Qc7 {[%clk 0:02:03]} 22. Bf5 {[%clk 0:02:36]}  Rcd8 {[%clk 0:02:03]} 23. Bxd7 {[%clk 0:02:35]}  Rxd7 {[%clk 0:02:04]} 24. Nd4 {[%clk 0:02:36]}  Re5 {[%clk 0:01:57]} 25. Qe2 {[%clk 0:02:32]}  Rde7 {[%clk 0:01:52]} 26. Qg4 {[%clk 0:02:31]}  Rg5 {[%clk 0:01:49]} 27. Qf4 {[%clk 0:02:27]}  Rge5 {[%clk 0:01:38]} 28. h3 {[%clk 0:02:24]}  g5 {[%clk 0:01:37]} 29. Qf3 {[%clk 0:02:23]}  Qd7 {[%clk 0:01:34]} 30. Re1 {[%clk 0:02:13]}  f5 {[%clk 0:01:33]} 31. Qh5 {[%clk 0:02:08]}  Kg7 {[%clk 0:01:29]} 32. g4 {[%clk 0:02:05]}  fxg4 {[%clk 0:01:18]} 33. Qxg4 {[%clk 0:02:04]}  R7e6 {[%clk 0:00:38]} 34. Nxe6+ {[%clk 0:01:55]}  Rxe6 {[%clk 0:00:37]} 35. Rad1 {[%clk 0:01:50]}  Kg6 {[%clk 0:00:34]} 36. e4 {[%clk 0:01:48]}  h5 {[%clk 0:00:33]} 37. Qf5+ {[%clk 0:01:47]}  Kh6 {[%clk 0:00:31]} 38. Qf8+ {[%clk 0:01:45]}  Kh7 {[%clk 0:00:26]} 39. Qxa8 {[%clk 0:01:45]}  Re7 {[%clk 0:00:15]} 40. Re3 {[%clk 0:01:40]}  d4 {[%clk 0:00:11]} 41. Qf8 {[%clk 0:01:35]}  Qe6 {[%clk 0:00:05]} 42. Rxd4 {[%clk 0:01:28]}  Rf7 {[%clk 0:00:05]} 43. Qd6 {[%clk 0:01:26]} 1-0


[Site "https://www.chess.com"]

[Event "Titled Tuesday Blitz April 26 Early 2022"]
[White "Riehle, Marco"]
[Black "Makarian, Rudik"]
[WhiteFideId "12904392"]
[BlackFideId "44105681"]
[WhiteElo "2539"]
[BlackElo "2833"]
[Result "1-0"]
[Round "02"]
[TimeControl "180+1"]
[Date "2022.04.26"]
[WhiteClock "0:00:37"]
[BlackClock "0:00:01"]

1. e4 {[%clk 0:03:00]}  c5 {[%clk 0:02:59]} 2. a3 {[%clk 0:03:00]}  g6 {[%clk 0:02:57]} 3. h4 {[%clk 0:02:59]}  h6 {[%clk 0:02:51]} 4. h5 {[%clk 0:03:00]}  g5 {[%clk 0:02:51]} 5. Nc3 {[%clk 0:03:01]}  Nc6 {[%clk 0:02:51]} 6. Bc4 {[%clk 0:03:00]}  e6 {[%clk 0:02:51]} 7. d3 {[%clk 0:03:01]}  Nf6 {[%clk 0:02:23]} 8. f4 {[%clk 0:03:01]}  gxf4 {[%clk 0:02:23]} 9. Bxf4 {[%clk 0:03:02]}  d5 {[%clk 0:02:24]} 10. Ba2 {[%clk 0:02:56]}  Bd6 {[%clk 0:02:22]} 11. Qd2 {[%clk 0:02:54]}  d4 {[%clk 0:02:17]} 12. Nce2 {[%clk 0:02:54]}  Ng4 {[%clk 0:02:16]} 13. O-O-O {[%clk 0:02:49]}  e5 {[%clk 0:02:05]} 14. Bg3 {[%clk 0:02:46]}  Ne3 {[%clk 0:02:05]} 15. Re1 {[%clk 0:02:43]}  Be6 {[%clk 0:02:03]} 16. Bxe6 {[%clk 0:02:42]}  fxe6 {[%clk 0:02:04]} 17. Nf3 {[%clk 0:02:36]}  Rg8 {[%clk 0:01:55]} 18. Bh4 {[%clk 0:02:34]}  Be7 {[%clk 0:01:43]} 19. Nc3 {[%clk 0:01:51]}  Rxg2 {[%clk 0:01:33]} 20. Re2 {[%clk 0:01:51]}  dxc3 {[%clk 0:01:24]} 21. Qxe3 {[%clk 0:01:50]}  cxb2+ {[%clk 0:01:24]} 22. Kb1 {[%clk 0:01:50]}  Rxe2 {[%clk 0:01:21]} 23. Qxe2 {[%clk 0:01:50]}  Qa5 {[%clk 0:01:21]} 24. Kxb2 {[%clk 0:01:44]}  Bxh4 {[%clk 0:01:14]} 25. Rxh4 {[%clk 0:01:42]}  O-O-O {[%clk 0:01:14]} 26. Rg4 {[%clk 0:01:40]}  Nd4 {[%clk 0:00:36]} 27. Nxd4 {[%clk 0:01:35]}  cxd4 {[%clk 0:00:35]} 28. Rg6 {[%clk 0:01:31]}  Qc3+ {[%clk 0:00:33]} 29. Ka2 {[%clk 0:01:31]}  Rd6 {[%clk 0:00:33]} 30. Rg8+ {[%clk 0:01:28]}  Kc7 {[%clk 0:00:33]} 31. Rg7+ {[%clk 0:01:28]}  Kb6 {[%clk 0:00:26]} 32. Rg1 {[%clk 0:01:17]}  Ka6 {[%clk 0:00:14]} 33. Rb1 {[%clk 0:01:17]}  Rb6 {[%clk 0:00:14]} 34. Rb3 {[%clk 0:01:15]}  Rxb3 {[%clk 0:00:14]} 35. cxb3 {[%clk 0:01:16]}  Kb6 {[%clk 0:00:14]} 36. Qd1 {[%clk 0:01:14]}  a5 {[%clk 0:00:13]} 37. Qe2 {[%clk 0:01:14]}  Kc5 {[%clk 0:00:13]} 38. Qd1 {[%clk 0:01:14]}  Kd6 {[%clk 0:00:13]} 39. Qe2 {[%clk 0:01:14]}  b5 {[%clk 0:00:14]} 40. Qd1 {[%clk 0:01:14]}  Kd7 {[%clk 0:00:13]} 41. Qe2 {[%clk 0:01:12]}  a4 {[%clk 0:00:13]} 42. Qd1 {[%clk 0:00:57]}  axb3+ {[%clk 0:00:10]} 43. Qxb3 {[%clk 0:00:58]}  Qd2+ {[%clk 0:00:10]} 44. Ka1 {[%clk 0:00:58]}  Qc1+ {[%clk 0:00:10]} 45. Ka2 {[%clk 0:00:58]}  Qd2+ {[%clk 0:00:10]} 46. Kb1 {[%clk 0:00:58]}  Qe1+ {[%clk 0:00:11]} 47. Kb2 {[%clk 0:00:58]}  Qe2+ {[%clk 0:00:10]} 48. Qc2 {[%clk 0:00:57]}  Qxh5 {[%clk 0:00:10]} 49. Qg2 {[%clk 0:00:56]}  Qg5 {[%clk 0:00:09]} 50. Qf2 {[%clk 0:00:54]}  Qf4 {[%clk 0:00:09]} 51. Qg2 {[%clk 0:00:54]}  Kd6 {[%clk 0:00:09]} 52. Kb3 {[%clk 0:00:53]}  Qe3 {[%clk 0:00:09]} 53. Qc2 {[%clk 0:00:52]}  h5 {[%clk 0:00:09]} 54. Kb4 {[%clk 0:00:52]}  Ke7 {[%clk 0:00:08]} 55. Kxb5 {[%clk 0:00:51]}  h4 {[%clk 0:00:07]} 56. a4 {[%clk 0:00:51]}  h3 {[%clk 0:00:07]} 57. a5 {[%clk 0:00:51]}  Qg3 {[%clk 0:00:04]} 58. a6 {[%clk 0:00:50]}  h2 {[%clk 0:00:05]} 59. a7 {[%clk 0:00:51]}  h1=Q {[%clk 0:00:03]} 60. a8=Q {[%clk 0:00:51]}  Kf6 {[%clk 0:00:01]} 61. Qf8+ {[%clk 0:00:50]}  Kg5 {[%clk 0:00:01]} 62. Qg7+ {[%clk 0:00:47]}  Kf4 {[%clk 0:00:01]} 63. Qf6+ {[%clk 0:00:44]}  Ke3 {[%clk 0:00:02]} 64. Qxe6 {[%clk 0:00:41]}  Qh8 {[%clk 0:00:02]} 65. Qc1+ {[%clk 0:00:41]}  Ke2 {[%clk 0:00:02]} 66. Qa2+ {[%clk 0:00:40]}  Kf3 {[%clk 0:00:03]} 67. Qd1+ {[%clk 0:00:38]}  Kf4 {[%clk 0:00:02]} 68. Qad2+ {[%clk 0:00:37]}  Qe3 {[%clk 0:00:01]} 69. Qf1+ {[%clk 0:00:37]} 1-0


[Site "https://www.chess.com"]

[Event "Titled Tuesday Blitz April 26 Early 2022"]
[White "Ronka, Erik"]
[Black "Jones, Daniel"]
[WhiteFideId "505080"]
[BlackFideId "2019655"]
[WhiteElo "2264"]
[BlackElo "2339"]
[Result "1-0"]
[Round "02"]
[TimeControl "180+1"]
[Date "2022.04.26"]
[WhiteClock "0:00:08"]
[BlackClock "0:00:27"]

1. e4 {[%clk 0:03:00]}  e5 {[%clk 0:02:57]} 2. Nf3 {[%clk 0:02:59]}  f5 {[%clk 0:02:56]} 3. Nxe5 {[%clk 0:02:56]}  Qf6 {[%clk 0:02:55]} 4. d4 {[%clk 0:02:52]}  d6 {[%clk 0:02:55]} 5. Nc4 {[%clk 0:02:46]}  fxe4 {[%clk 0:02:55]} 6. Nc3 {[%clk 0:02:42]}  Qg6 {[%clk 0:02:54]} 7. f3 {[%clk 0:02:37]}  exf3 {[%clk 0:02:48]} 8. Qxf3 {[%clk 0:02:38]}  Nf6 {[%clk 0:02:48]} 9. Bd3 {[%clk 0:02:33]}  Qf7 {[%clk 0:02:37]} 10. O-O {[%clk 0:02:18]}  Nc6 {[%clk 0:02:37]} 11. Bg5 {[%clk 0:02:06]}  Be7 {[%clk 0:02:31]} 12. d5 {[%clk 0:01:50]}  Nb4 {[%clk 0:02:24]} 13. Bf5 {[%clk 0:01:40]}  Bxf5 {[%clk 0:02:09]} 14. Qxf5 {[%clk 0:01:41]}  Nbxd5 {[%clk 0:01:56]} 15. Nxd5 {[%clk 0:01:14]}  Qxd5 {[%clk 0:01:51]} 16. Ne3 {[%clk 0:00:52]}  Qxf5 {[%clk 0:01:33]} 17. Nxf5 {[%clk 0:00:53]}  Kd7 {[%clk 0:01:32]} 18. Nxg7 {[%clk 0:00:50]}  Ne4 {[%clk 0:01:33]} 19. Bxe7 {[%clk 0:00:49]}  Kxe7 {[%clk 0:01:33]} 20. Rae1 {[%clk 0:00:47]}  d5 {[%clk 0:01:33]} 21. c4 {[%clk 0:00:47]}  c6 {[%clk 0:01:33]} 22. cxd5 {[%clk 0:00:46]}  cxd5 {[%clk 0:01:34]} 23. Nf5+ {[%clk 0:00:44]}  Ke6 {[%clk 0:01:28]} 24. Ng3 {[%clk 0:00:39]}  Ke5 {[%clk 0:01:15]} 25. Rf5+ {[%clk 0:00:37]}  Ke6 {[%clk 0:01:16]} 26. Rh5 {[%clk 0:00:33]}  Rac8 {[%clk 0:01:09]} 27. Nxe4 {[%clk 0:00:32]}  dxe4 {[%clk 0:01:10]} 28. Rxe4+ {[%clk 0:00:32]}  Kf6 {[%clk 0:01:10]} 29. Re2 {[%clk 0:00:20]}  Kg6 {[%clk 0:01:09]} 30. Rhe5 {[%clk 0:00:19]}  Rhf8 {[%clk 0:01:09]} 31. h3 {[%clk 0:00:19]}  Rc1+ {[%clk 0:01:05]} 32. Kh2 {[%clk 0:00:19]}  Rf6 {[%clk 0:01:05]} 33. Re6 {[%clk 0:00:18]}  Rc7 {[%clk 0:01:02]} 34. Rxf6+ {[%clk 0:00:18]}  Kxf6 {[%clk 0:01:02]} 35. g4 {[%clk 0:00:18]}  Rd7 {[%clk 0:01:01]} 36. Kg3 {[%clk 0:00:18]}  h5 {[%clk 0:01:01]} 37. Kf4 {[%clk 0:00:12]}  Rd4+ {[%clk 0:00:59]} 38. Re4 {[%clk 0:00:11]}  Rd2 {[%clk 0:00:59]} 39. g5+ {[%clk 0:00:12]}  Kf7 {[%clk 0:00:57]} 40. Rb4 {[%clk 0:00:11]}  b6 {[%clk 0:00:57]} 41. h4 {[%clk 0:00:11]}  Kg6 {[%clk 0:00:56]} 42. b3 {[%clk 0:00:10]}  Rxa2 {[%clk 0:00:56]} 43. Rc4 {[%clk 0:00:10]}  Rh2 {[%clk 0:00:54]} 44. Rc6+ {[%clk 0:00:10]}  Kf7 {[%clk 0:00:53]} 45. g6+ {[%clk 0:00:10]}  Kg7 {[%clk 0:00:52]} 46. Kg5 {[%clk 0:00:11]}  Rg2+ {[%clk 0:00:50]} 47. Kxh5 {[%clk 0:00:11]}  Rg3 {[%clk 0:00:48]} 48. Rc7+ {[%clk 0:00:10]}  Kf6 {[%clk 0:00:49]} 49. Rf7+ {[%clk 0:00:10]}  Ke6 {[%clk 0:00:49]} 50. Rf2 {[%clk 0:00:09]}  a5 {[%clk 0:00:36]} 51. Kh6 {[%clk 0:00:08]}  b5 {[%clk 0:00:36]} 52. g7 {[%clk 0:00:08]}  Ke7 {[%clk 0:00:32]} 53. Kh7 {[%clk 0:00:08]}  Rg4 {[%clk 0:00:32]} 54. h5 {[%clk 0:00:07]}  Kd6 {[%clk 0:00:27]} 55. h6 {[%clk 0:00:07]}  Kc5 {[%clk 0:00:27]} 56. g8=Q {[%clk 0:00:07]}  Rxg8 {[%clk 0:00:27]} 57. Kxg8 {[%clk 0:00:08]}  b4 {[%clk 0:00:27]} 58. h7 {[%clk 0:00:08]} 1-0


[Site "https://www.chess.com"]